[Event "Early-Titled-Tuesday-Blitz-September-12-2023"]
[Site "Chess.com"]
[Date "2023.09.12"]
[Round "3"]
[White "hongnhung1234"]
[Black "carloseduar100"]
[Result "0-1"]
[WhiteElo "2488"]
[BlackElo "2294"]
[TimeControl "180+1"]
[EndTime "8:28:15 PDT"]
[Termination "carloseduar100 won by resignation"]

1. e4 {[%clk 0:03:00.9]} 1... e6 {[%clk 0:02:59.9]} 2. d4 {[%clk 0:03:00.4]}
2... d5 {[%clk 0:03:00.8]} 3. Nc3 {[%clk 0:03:00.4]} 3... Nf6 {[%clk 0:02:59.5]}
4. Bg5 {[%clk 0:02:59.7]} 4... Be7 {[%clk 0:02:59.7]} 5. e5 {[%clk 0:02:58.7]}
5... Nfd7 {[%clk 0:03:00]} 6. h4 {[%clk 0:02:58.9]} 6... Bxg5 {[%clk 0:03:00.6]}
7. hxg5 {[%clk 0:02:59.8]} 7... Qxg5 {[%clk 0:03:01.2]} 8. Nh3 {[%clk
0:02:59.9]} 8... Qh4 {[%clk 0:03:01.8]} 9. g3 {[%clk 0:02:57.8]} 9... Qe7 {[%clk
0:03:01.9]} 10. Qg4 {[%clk 0:02:56.6]} 10... g6 {[%clk 0:02:57.9]} 11. Ng5
{[%clk 0:02:56.2]} 11... h5 {[%clk 0:02:57.9]} 12. Qf4 {[%clk 0:02:55.9]} 12...
a6 {[%clk 0:02:56.8]} 13. O-O-O {[%clk 0:02:53.3]} 13... Nc6 {[%clk 0:02:56]}
14. g4 {[%clk 0:02:41.4]} 14... f6 {[%clk 0:02:49.3]} 15. exf6 {[%clk
0:02:31.4]} 15... Qxf6 {[%clk 0:02:49.6]} 16. Qd2 {[%clk 0:02:30.4]} 16... Nxd4
{[%clk 0:02:39.5]} 17. f4 {[%clk 0:02:02.4]} 17... c5 {[%clk 0:02:31.4]} 18.
gxh5 {[%clk 0:01:28.9]} 18... Rxh5 {[%clk 0:02:29.8]} 19. Rxh5 {[%clk
0:01:26.9]} 19... gxh5 {[%clk 0:02:30.7]} 20. Qh2 {[%clk 0:01:19.8]} 20... Kd8
{[%clk 0:01:51.8]} 21. Kb1 {[%clk 0:01:11.1]} 21... b5 {[%clk 0:01:46.2]} 22.
Qxh5 {[%clk 0:01:03.7]} 22... Kc7 {[%clk 0:01:34.4]} 23. Bh3 {[%clk 0:00:52.1]}
23... Nb6 {[%clk 0:01:24.6]} 24. Qh7+ {[%clk 0:00:44.7]} 24... Bd7 {[%clk
0:01:17.4]} 25. Rxd4 {[%clk 0:00:31.5]} 25... cxd4 {[%clk 0:00:58.7]} 26. Ne2
{[%clk 0:00:21]} 26... Rh8 {[%clk 0:00:37.4]} 27. Qd3 {[%clk 0:00:20.5]} 27...
Nc4 {[%clk 0:00:30.3]} 28. a3 {[%clk 0:00:18.4]} 28... e5 {[%clk 0:00:22.1]} 29.
Bxd7 {[%clk 0:00:16.4]} 29... Kxd7 {[%clk 0:00:20.4]} 30. Qf3 {[%clk 0:00:11]}
30... e4 {[%clk 0:00:17.6]} 31. Qg4+ {[%clk 0:00:10.8]} 31... Kc6 {[%clk
0:00:16.7]} 32. Ne6 {[%clk 0:00:10.2]} 32... d3 {[%clk 0:00:14]} 33. N2d4+
{[%clk 0:00:10.1]} 33... Kd6 {[%clk 0:00:11]} 34. cxd3 {[%clk 0:00:10.1]} 34...
exd3 {[%clk 0:00:11]} 35. f5 {[%clk 0:00:08.8]} 35... Qe5 {[%clk 0:00:10.7]} 36.
Ka2 {[%clk 0:00:06.7]} 36... Rh2 {[%clk 0:00:10.2]} 37. f6 {[%clk 0:00:04.3]}
37... Rxb2+ {[%clk 0:00:10.2]} 38. Ka1 {[%clk 0:00:04.7]} 38... Qe1+ {[%clk
0:00:10.2]} 0-1

[Event "Early-Titled-Tuesday-Blitz-September-12-2023"]
[Site "Chess.com"]
[Date "2023.09.12"]
[Round "3"]
[White "Mikhail_Golubev"]
[Black "Gauravthegm"]
[Result "1-0"]
[WhiteElo "2592"]
[BlackElo "2417"]
[TimeControl "180+1"]
[EndTime "8:28:16 PDT"]
[Termination "Mikhail_Golubev won by checkmate"]

1. e4 {[%clk 0:03:00.9]} 1... c5 {[%clk 0:02:57.7]} 2. Nf3 {[%clk 0:02:59.7]}
2... Nc6 {[%clk 0:02:57.7]} 3. Nc3 {[%clk 0:02:58.8]} 3... a6 {[%clk 0:02:38.8]}
4. d4 {[%clk 0:02:56.4]} 4... cxd4 {[%clk 0:02:39.2]} 5. Nxd4 {[%clk 0:02:56.9]}
5... e6 {[%clk 0:02:39.4]} 6. Be3 {[%clk 0:02:56.8]} 6... Nf6 {[%clk 0:02:38.1]}
7. Bd3 {[%clk 0:02:56.4]} 7... Bb4 {[%clk 0:02:33.4]} 8. O-O {[%clk 0:02:47.8]}
8... O-O {[%clk 0:02:32.7]} 9. Nxc6 {[%clk 0:02:30.9]} 9... bxc6 {[%clk
0:02:27]} 10. e5 {[%clk 0:02:30.7]} 10... Bxc3 {[%clk 0:02:27.1]} 11. bxc3
{[%clk 0:02:31]} 11... Nd5 {[%clk 0:02:26.5]} 12. Bc5 {[%clk 0:02:01.5]} 12...
Re8 {[%clk 0:02:18.3]} 13. Qg4 {[%clk 0:01:54.3]} 13... Qa5 {[%clk 0:01:58.6]}
14. Bd6 {[%clk 0:01:34.6]} 14... Qxc3 {[%clk 0:01:44]} 15. Rab1 {[%clk
0:01:24.3]} 15... a5 {[%clk 0:01:38.6]} 16. Rb3 {[%clk 0:01:20.6]} 16... Qd2
{[%clk 0:01:38.2]} 17. Rd1 {[%clk 0:00:27]} 17... Qf4 {[%clk 0:01:28.7]} 18. Qh5
{[%clk 0:00:23.8]} 18... g6 {[%clk 0:01:23]} 19. Qe2 {[%clk 0:00:21.7]} 19... a4
{[%clk 0:01:17.9]} 20. Ra3 {[%clk 0:00:21]} 20... Qg5 {[%clk 0:01:11]} 21. g3
{[%clk 0:00:20.4]} 21... Nf4 {[%clk 0:01:08.9]} 22. Qd2 {[%clk 0:00:17.5]} 22...
Nh3+ {[%clk 0:01:06.8]} 23. Kg2 {[%clk 0:00:17.5]} 23... Qh5 {[%clk 0:00:47.2]}
24. Be2 {[%clk 0:00:17.2]} 24... Qf5 {[%clk 0:00:47.4]} 25. g4 {[%clk
0:00:13.1]} 25... Nf4+ {[%clk 0:00:34.9]} 26. Kf3 {[%clk 0:00:13.2]} 26... Qg5
{[%clk 0:00:20]} 27. Qxf4 {[%clk 0:00:13.3]} 27... Qh4 {[%clk 0:00:20.6]} 28.
Qg3 {[%clk 0:00:13.4]} 28... Qg5 {[%clk 0:00:20.5]} 29. h4 {[%clk 0:00:13.3]}
29... Qh6 {[%clk 0:00:20.4]} 30. g5 {[%clk 0:00:13.5]} 30... Qh5+ {[%clk
0:00:20.2]} 31. Qg4 {[%clk 0:00:13.1]} 31... Qxg4+ {[%clk 0:00:20.4]} 32. Kxg4
{[%clk 0:00:13.4]} 32... h5+ {[%clk 0:00:18]} 33. gxh6 {[%clk 0:00:12.7]} 33...
Kh7 {[%clk 0:00:18.6]} 34. h5 {[%clk 0:00:12.9]} 34... Kxh6 {[%clk 0:00:17.3]}
35. hxg6 {[%clk 0:00:12.5]} 35... Kxg6 {[%clk 0:00:17.9]} 36. Rg1 {[%clk
0:00:12]} 36... f5+ {[%clk 0:00:17.2]} 37. Kh4+ {[%clk 0:00:11.9]} 37... Kh6
{[%clk 0:00:16.4]} 38. Rh3 {[%clk 0:00:11.5]} 38... Ba6 {[%clk 0:00:08.9]} 39.
Bxa6 {[%clk 0:00:08.1]} 39... Rxa6 {[%clk 0:00:08.8]} 40. Kg3+ {[%clk
0:00:07.4]} 40... Kg5 {[%clk 0:00:09]} 41. f4+ {[%clk 0:00:07.1]} 41... Kg6
{[%clk 0:00:09.3]} 42. Kh2+ {[%clk 0:00:07.5]} 42... Kf7 {[%clk 0:00:09.9]} 43.
Rh7# {[%clk 0:00:07.7]} 1-0

[Event "Early-Titled-Tuesday-Blitz-September-12-2023"]
[Site "Chess.com"]
[Date "2023.09.12"]
[Round "3"]
[White "HansOnTwitch"]
[Black "masterofpuppets2"]
[Result "1-0"]
[WhiteElo "3038"]
[BlackElo "2503"]
[TimeControl "180+1"]
[EndTime "8:28:17 PDT"]
[Termination "HansOnTwitch won on time"]

1. e4 {[%clk 0:02:43.2]} 1... c5 {[%clk 0:02:59.6]} 2. Nf3 {[%clk 0:02:41.5]}
2... Nc6 {[%clk 0:02:59.8]} 3. Bb5 {[%clk 0:02:39.9]} 3... e6 {[%clk 0:02:59.7]}
4. O-O {[%clk 0:02:39.6]} 4... Nge7 {[%clk 0:02:59.4]} 5. Re1 {[%clk 0:02:39.8]}
5... a6 {[%clk 0:02:39.2]} 6. Bf1 {[%clk 0:02:39.2]} 6... d5 {[%clk 0:02:38.3]}
7. d3 {[%clk 0:02:38.2]} 7... Ng6 {[%clk 0:02:28.7]} 8. e5 {[%clk 0:02:35.5]}
8... Be7 {[%clk 0:02:27.2]} 9. g3 {[%clk 0:02:35.3]} 9... O-O {[%clk 0:02:24.8]}
10. h4 {[%clk 0:02:35.8]} 10... f6 {[%clk 0:02:25.2]} 11. exf6 {[%clk
0:02:32.2]} 11... Bxf6 {[%clk 0:02:21]} 12. Bg2 {[%clk 0:02:30.9]} 12... Bd7
{[%clk 0:02:04.9]} 13. Nc3 {[%clk 0:02:28.9]} 13... Nge5 {[%clk 0:01:59.7]} 14.
Nh2 {[%clk 0:02:13.3]} 14... Kh8 {[%clk 0:01:54.9]} 15. f4 {[%clk 0:02:07.3]}
15... Nf7 {[%clk 0:01:49.5]} 16. Ng4 {[%clk 0:02:07.2]} 16... Bd4+ {[%clk
0:01:37.8]} 17. Kh2 {[%clk 0:01:54]} 17... g6 {[%clk 0:01:35]} 18. Bd2 {[%clk
0:01:28.5]} 18... Bg7 {[%clk 0:01:28.8]} 19. Kh1 {[%clk 0:01:19.9]} 19... Nd6
{[%clk 0:01:24.5]} 20. Kh2 {[%clk 0:00:53.4]} 20... Nf5 {[%clk 0:01:19.9]} 21.
Ne2 {[%clk 0:00:45.4]} 21... Qc7 {[%clk 0:00:45.5]} 22. Bc3 {[%clk 0:00:41.2]}
22... d4 {[%clk 0:00:36]} 23. Bd2 {[%clk 0:00:39.8]} 23... Nce7 {[%clk
0:00:35.8]} 24. Ng1 {[%clk 0:00:38.4]} 24... Rae8 {[%clk 0:00:30.9]} 25. Nf3
{[%clk 0:00:37.5]} 25... Nd5 {[%clk 0:00:30.6]} 26. Qe2 {[%clk 0:00:30.8]} 26...
Bc6 {[%clk 0:00:24.6]} 27. Nfe5 {[%clk 0:00:28.5]} 27... b6 {[%clk 0:00:17.4]}
28. c4 {[%clk 0:00:28.1]} 28... dxc3 {[%clk 0:00:16.2]} 29. bxc3 {[%clk
0:00:29]} 29... Bb7 {[%clk 0:00:16.1]} 30. Rab1 {[%clk 0:00:24.9]} 30... Nde7
{[%clk 0:00:15.6]} 31. Nf3 {[%clk 0:00:20.3]} 31... Nd5 {[%clk 0:00:09.8]} 32.
Nge5 {[%clk 0:00:20.7]} 32... Ba8 {[%clk 0:00:07.9]} 33. Ng5 {[%clk 0:00:17.7]}
33... Kg8 {[%clk 0:00:05]} 34. h5 {[%clk 0:00:16.9]} 34... gxh5 {[%clk
0:00:04.3]} 35. Qxh5 {[%clk 0:00:16.4]} 35... Nf6 {[%clk 0:00:04.5]} 36. Qe2
{[%clk 0:00:15.4]} 36... Bxg2 {[%clk 0:00:04.5]} 37. Kxg2 {[%clk 0:00:15.7]}
37... Nd5 {[%clk 0:00:03.8]} 38. Rh1 {[%clk 0:00:12.4]} 38... h6 {[%clk
0:00:02.4]} 39. Ngf3 {[%clk 0:00:08.6]} 39... Nf6 {[%clk 0:00:01.8]} 40. g4
{[%clk 0:00:07.6]} 40... Nd6 {[%clk 0:00:01.3]} 41. g5 {[%clk 0:00:08]} 41...
Nd5 {[%clk 0:00:01.6]} 42. gxh6 {[%clk 0:00:07.8]} 42... Bf6 {[%clk 0:00:01.5]}
43. Ng5 {[%clk 0:00:06.4]} 1-0

[Event "Early-Titled-Tuesday-Blitz-September-12-2023"]
[Site "Chess.com"]
[Date "2023.09.12"]
[Round "3"]
[White "Goi_Manne"]
[Black "Sadykov_Ramil"]
[Result "1-0"]
[WhiteElo "2325"]
[BlackElo "2560"]
[TimeControl "180+1"]
[EndTime "8:28:17 PDT"]
[Termination "Goi_Manne won on time"]

1. e4 {[%clk 0:02:57.5]} 1... c5 {[%clk 0:02:51.8]} 2. Nf3 {[%clk 0:02:55.5]}
2... e6 {[%clk 0:02:51.7]} 3. c3 {[%clk 0:02:54.4]} 3... Nf6 {[%clk 0:02:50.6]}
4. e5 {[%clk 0:02:53.9]} 4... Nd5 {[%clk 0:02:50.5]} 5. g3 {[%clk 0:02:54.6]}
5... d6 {[%clk 0:02:48.3]} 6. exd6 {[%clk 0:02:55.5]} 6... Bxd6 {[%clk
0:02:47.7]} 7. Bg2 {[%clk 0:02:56.1]} 7... O-O {[%clk 0:02:46.8]} 8. O-O {[%clk
0:02:56.8]} 8... b6 {[%clk 0:02:40.7]} 9. d4 {[%clk 0:02:56.8]} 9... Bb7 {[%clk
0:02:34.1]} 10. Nbd2 {[%clk 0:02:53.2]} 10... Nf6 {[%clk 0:02:25]} 11. Nc4
{[%clk 0:02:51.1]} 11... Be7 {[%clk 0:02:21.1]} 12. Be3 {[%clk 0:02:47.1]} 12...
cxd4 {[%clk 0:02:10.3]} 13. Bxd4 {[%clk 0:02:18.4]} 13... Nc6 {[%clk 0:02:07.6]}
14. Be3 {[%clk 0:02:18.2]} 14... Nd5 {[%clk 0:01:54.8]} 15. Re1 {[%clk
0:02:12.4]} 15... Nxe3 {[%clk 0:01:52.4]} 16. Rxe3 {[%clk 0:02:13.3]} 16...
Qxd1+ {[%clk 0:01:48.3]} 17. Rxd1 {[%clk 0:02:14.2]} 17... Rfd8 {[%clk
0:01:46.1]} 18. Ree1 {[%clk 0:02:12.1]} 18... Ba6 {[%clk 0:01:23.7]} 19. Nfe5
{[%clk 0:02:05.2]} 19... Nxe5 {[%clk 0:01:17.5]} 20. Nxe5 {[%clk 0:02:06.1]}
20... Rxd1 {[%clk 0:01:01.8]} 21. Rxd1 {[%clk 0:02:07]} 21... Rd8 {[%clk
0:01:00.6]} 22. Rxd8+ {[%clk 0:02:06.6]} 22... Bxd8 {[%clk 0:01:01.5]} 23. Nc6
{[%clk 0:02:06.9]} 23... Bg5 {[%clk 0:00:57.1]} 24. f4 {[%clk 0:02:03.2]} 24...
Bf6 {[%clk 0:00:51.4]} 25. Nxa7 {[%clk 0:02:03]} 25... Bc4 {[%clk 0:00:47.7]}
26. a3 {[%clk 0:01:58.2]} 26... e5 {[%clk 0:00:41.7]} 27. fxe5 {[%clk
0:01:57.3]} 27... Bxe5 {[%clk 0:00:41]} 28. Nc6 {[%clk 0:01:57.9]} 28... Bf6
{[%clk 0:00:40.1]} 29. Kf2 {[%clk 0:01:55.6]} 29... Bg5 {[%clk 0:00:37.5]} 30.
Nd4 {[%clk 0:01:51.6]} 30... Bc1 {[%clk 0:00:30.8]} 31. b3 {[%clk 0:01:52]}
31... Bd3 {[%clk 0:00:23.9]} 32. a4 {[%clk 0:01:49.1]} 32... Bd2 {[%clk
0:00:22.2]} 33. Bf1 {[%clk 0:01:27.2]} 33... Bxf1 {[%clk 0:00:18.9]} 34. Kxf1
{[%clk 0:01:28.1]} 34... Bxc3 {[%clk 0:00:19.3]} 35. Nb5 {[%clk 0:01:28.8]}
35... Bb4 {[%clk 0:00:18.6]} 36. Nc7 {[%clk 0:01:27.7]} 36... g6 {[%clk
0:00:14.9]} 37. Nd5 {[%clk 0:01:27.8]} 37... Bc5 {[%clk 0:00:15]} 38. b4 {[%clk
0:01:28.1]} 38... Bd4 {[%clk 0:00:14.8]} 39. a5 {[%clk 0:01:25.8]} 39... bxa5
{[%clk 0:00:14.6]} 40. bxa5 {[%clk 0:01:26.7]} 40... Kg7 {[%clk 0:00:11.1]} 41.
a6 {[%clk 0:01:26.8]} 41... h5 {[%clk 0:00:09.9]} 42. Nc7 {[%clk 0:01:27.2]}
42... f5 {[%clk 0:00:08.2]} 43. Nb5 {[%clk 0:01:27.7]} 43... Bb6 {[%clk
0:00:07.9]} 44. a7 {[%clk 0:01:27.8]} 44... Bxa7 {[%clk 0:00:08]} 45. Nxa7
{[%clk 0:01:28.7]} 45... Kf6 {[%clk 0:00:05.1]} 46. Nb5 {[%clk 0:01:29.2]} 46...
Kg5 {[%clk 0:00:04]} 47. Kg2 {[%clk 0:01:28.6]} 47... h4 {[%clk 0:00:04.1]} 48.
Nd4 {[%clk 0:01:22.7]} 48... hxg3 {[%clk 0:00:02.5]} 49. Kxg3 {[%clk 0:01:23.6]}
49... Kh5 {[%clk 0:00:01.7]} 50. Ne6 {[%clk 0:00:52.5]} 50... Kh6 {[%clk
0:00:01.8]} 51. Kh4 {[%clk 0:00:51.2]} 51... Kh7 {[%clk 0:00:01.9]} 52. Kg5
{[%clk 0:00:51.6]} 52... Kg8 {[%clk 0:00:01.2]} 53. Nf4 {[%clk 0:00:52]} 53...
Kg7 {[%clk 0:00:01.4]} 54. Nxg6 {[%clk 0:00:52.7]} 54... Kf7 {[%clk 0:00:01.2]}
55. Kxf5 {[%clk 0:00:52.6]} 55... Kg7 {[%clk 0:00:01.3]} 56. Kg5 {[%clk
0:00:53.2]} 1-0

[Event "Early-Titled-Tuesday-Blitz-September-12-2023"]
[Site "Chess.com"]
[Date "2023.09.12"]
[Round "3"]
[White "schackspelaren"]
[Black "LoaySameer"]
[Result "0-1"]
[WhiteElo "2290"]
[BlackElo "2519"]
[TimeControl "180+1"]
[EndTime "8:28:17 PDT"]
[Termination "LoaySameer won by resignation"]

1. e4 {[%clk 0:02:50.3]} 1... g6 {[%clk 0:02:59.6]} 2. d4 {[%clk 0:02:49.8]}
2... Bg7 {[%clk 0:03:00]} 3. c4 {[%clk 0:02:50]} 3... d6 {[%clk 0:03:00.7]} 4.
Nc3 {[%clk 0:02:50.2]} 4... Nf6 {[%clk 0:03:01.4]} 5. Be2 {[%clk 0:02:49.2]}
5... O-O {[%clk 0:03:01.7]} 6. Nf3 {[%clk 0:02:49.4]} 6... Na6 {[%clk
0:03:01.6]} 7. O-O {[%clk 0:02:48.4]} 7... e5 {[%clk 0:02:58.7]} 8. Be3 {[%clk
0:02:45.3]} 8... Ng4 {[%clk 0:02:58.1]} 9. Bg5 {[%clk 0:02:44.8]} 9... Qe8
{[%clk 0:02:58.5]} 10. h3 {[%clk 0:02:42.8]} 10... f6 {[%clk 0:02:57.8]} 11. Bd2
{[%clk 0:02:41.6]} 11... Nh6 {[%clk 0:02:56.5]} 12. Be3 {[%clk 0:02:40.7]} 12...
Nf7 {[%clk 0:02:50.4]} 13. Qc2 {[%clk 0:02:32.7]} 13... c6 {[%clk 0:02:50.8]}
14. Rfd1 {[%clk 0:02:31]} 14... Qe7 {[%clk 0:02:51]} 15. a3 {[%clk 0:02:23.3]}
15... Nc7 {[%clk 0:02:47.4]} 16. b4 {[%clk 0:02:21.4]} 16... f5 {[%clk 0:02:45]}
17. exf5 {[%clk 0:02:19.5]} 17... gxf5 {[%clk 0:02:44.9]} 18. dxe5 {[%clk
0:02:19.3]} 18... Nxe5 {[%clk 0:02:40.9]} 19. Nxe5 {[%clk 0:02:12.5]} 19... Bxe5
{[%clk 0:02:38.4]} 20. Bh6 {[%clk 0:01:45.5]} 20... Re8 {[%clk 0:02:29]} 21. Bh5
{[%clk 0:01:44.6]} 21... Rd8 {[%clk 0:02:20.2]} 22. f4 {[%clk 0:01:39.7]} 22...
Bf6 {[%clk 0:01:42.3]} 23. Re1 {[%clk 0:01:39]} 23... Be6 {[%clk 0:01:42.5]} 24.
Re2 {[%clk 0:01:32]} 24... Bd4+ {[%clk 0:01:24.3]} 25. Kh1 {[%clk 0:01:28.9]}
25... Qf6 {[%clk 0:01:24.9]} 26. Bg5 {[%clk 0:01:26.5]} 26... Qg7 {[%clk
0:01:25.3]} 27. Bxd8 {[%clk 0:01:18.2]} 27... Rxd8 {[%clk 0:01:25.3]} 28. Rc1
{[%clk 0:00:39.1]} 28... Bxc4 {[%clk 0:01:22.5]} 29. Ree1 {[%clk 0:00:31.5]}
29... b5 {[%clk 0:01:13.5]} 30. Bf3 {[%clk 0:00:29.8]} 30... d5 {[%clk
0:01:10.4]} 31. Ne2 {[%clk 0:00:26.7]} 31... Be3 {[%clk 0:01:04.7]} 32. Rcd1
{[%clk 0:00:24.2]} 32... d4 {[%clk 0:01:05.1]} 33. Qxf5 {[%clk 0:00:20.1]} 33...
d3 {[%clk 0:00:30]} 34. Nc3 {[%clk 0:00:19.8]} 34... Bf2 {[%clk 0:00:26.8]} 35.
Rf1 {[%clk 0:00:16.2]} 35... Bd4 {[%clk 0:00:19.9]} 36. Ne4 {[%clk 0:00:14.5]}
36... Rf8 {[%clk 0:00:20.2]} 37. Qg4 {[%clk 0:00:14.1]} 37... Qxg4 {[%clk
0:00:20.2]} 38. Bxg4 {[%clk 0:00:14.4]} 38... Nd5 {[%clk 0:00:21.1]} 39. f5
{[%clk 0:00:13.9]} 39... Ne3 {[%clk 0:00:21.2]} 40. f6 {[%clk 0:00:12.9]} 40...
Nxf1 {[%clk 0:00:20.8]} 41. Rxf1 {[%clk 0:00:12.4]} 41... Bd5 {[%clk 0:00:20.2]}
42. Ng5 {[%clk 0:00:09.7]} 42... Rxf6 {[%clk 0:00:19.9]} 43. Rxf6 {[%clk
0:00:08.5]} 43... Bxf6 {[%clk 0:00:20.8]} 44. Ne6 {[%clk 0:00:07.5]} 44... d2
{[%clk 0:00:20]} 45. Nf4 {[%clk 0:00:07.4]} 45... Bb3 {[%clk 0:00:19.1]} 46. Nh5
{[%clk 0:00:06.7]} 46... Bd4 {[%clk 0:00:19]} 47. Ng3 {[%clk 0:00:05.6]} 47...
d1=Q+ {[%clk 0:00:19]} 48. Bxd1 {[%clk 0:00:05.8]} 48... Bxd1 {[%clk 0:00:19.8]}
49. Nf5 {[%clk 0:00:06.2]} 49... Be5 {[%clk 0:00:20.1]} 0-1

[Event "Early-Titled-Tuesday-Blitz-September-12-2023"]
[Site "Chess.com"]
[Date "2023.09.12"]
[Round "3"]
[White "Roman_Ovetchkin"]
[Black "cottage_cheese"]
[Result "1-0"]
[WhiteElo "2632"]
[BlackElo "2316"]
[TimeControl "180+1"]
[EndTime "8:28:18 PDT"]
[Termination "Roman_Ovetchkin won on time"]

1. d4 {[%clk 0:03:00.9]} 1... Nf6 {[%clk 0:02:59.1]} 2. c4 {[%clk 0:02:59]} 2...
e6 {[%clk 0:02:57.2]} 3. g3 {[%clk 0:02:59.1]} 3... Bb4+ {[%clk 0:02:52.4]} 4.
Bd2 {[%clk 0:02:58.7]} 4... Bxd2+ {[%clk 0:02:46.3]} 5. Qxd2 {[%clk 0:02:59.6]}
5... d5 {[%clk 0:02:45.9]} 6. Bg2 {[%clk 0:02:58.3]} 6... c6 {[%clk 0:02:44.2]}
7. Nf3 {[%clk 0:02:58.1]} 7... O-O {[%clk 0:02:43.3]} 8. O-O {[%clk 0:02:57.8]}
8... dxc4 {[%clk 0:02:41.4]} 9. Ne5 {[%clk 0:02:52.4]} 9... Nbd7 {[%clk
0:02:09.2]} 10. Nxc4 {[%clk 0:02:51.5]} 10... Qe7 {[%clk 0:01:52.2]} 11. Nc3
{[%clk 0:02:33.5]} 11... e5 {[%clk 0:01:49]} 12. Rad1 {[%clk 0:02:23.4]} 12...
Re8 {[%clk 0:01:43]} 13. h3 {[%clk 0:02:14.6]} 13... exd4 {[%clk 0:01:34.2]} 14.
Qxd4 {[%clk 0:02:14.2]} 14... Nf8 {[%clk 0:01:29.6]} 15. e4 {[%clk 0:01:53.3]}
15... Be6 {[%clk 0:01:24.1]} 16. Na5 {[%clk 0:01:42.4]} 16... Rad8 {[%clk
0:01:12.4]} 17. Qa4 {[%clk 0:01:19.7]} 17... Ng6 {[%clk 0:01:03.8]} 18. f4
{[%clk 0:00:50.2]} 18... Bc8 {[%clk 0:00:48.3]} 19. b4 {[%clk 0:00:39.6]} 19...
Nh5 {[%clk 0:00:42.1]} 20. Kh2 {[%clk 0:00:39.1]} 20... Rxd1 {[%clk 0:00:32.9]}
21. Rxd1 {[%clk 0:00:33.3]} 21... Nxg3 {[%clk 0:00:30.8]} 22. Kxg3 {[%clk
0:00:32.1]} 22... Qh4+ {[%clk 0:00:30.6]} 23. Kh2 {[%clk 0:00:32.7]} 23... Nxf4
{[%clk 0:00:30.4]} 24. Qc2 {[%clk 0:00:12.6]} 24... Bxh3 {[%clk 0:00:21.4]} 25.
Bxh3 {[%clk 0:00:10.8]} 25... Qxh3+ {[%clk 0:00:20.9]} 26. Kg1 {[%clk
0:00:11.3]} 26... Qg3+ {[%clk 0:00:16.5]} 27. Kf1 {[%clk 0:00:10.6]} 27... Qh3+
{[%clk 0:00:10.7]} 28. Ke1 {[%clk 0:00:07.6]} 28... Qh1+ {[%clk 0:00:07.1]} 29.
Kd2 {[%clk 0:00:06.9]} 29... Qg2+ {[%clk 0:00:06.9]} 30. Kc1 {[%clk 0:00:07.2]}
30... Qg5 {[%clk 0:00:06.1]} 31. Kb2 {[%clk 0:00:06.7]} 31... Ne6 {[%clk
0:00:05.5]} 32. Ka3 {[%clk 0:00:06]} 32... h5 {[%clk 0:00:05.7]} 33. Nc4 {[%clk
0:00:05.5]} 33... a5 {[%clk 0:00:04.1]} 34. bxa5 {[%clk 0:00:04.8]} 34... h4
{[%clk 0:00:03.5]} 35. e5 {[%clk 0:00:05]} 35... Qg3 {[%clk 0:00:02.8]} 36. Kb2
{[%clk 0:00:04.5]} 36... Nf4 {[%clk 0:00:02.6]} 37. Ne4 {[%clk 0:00:04.7]} 37...
Qf3 {[%clk 0:00:02.2]} 38. Ned6 {[%clk 0:00:04.2]} 38... Rf8 {[%clk 0:00:01.8]}
39. Rg1 {[%clk 0:00:04.5]} 39... g6 {[%clk 0:00:01.5]} 40. Qe4 {[%clk
0:00:02.2]} 1-0

[Event "Early-Titled-Tuesday-Blitz-September-12-2023"]
[Site "Chess.com"]
[Date "2023.09.12"]
[Round "3"]
[White "Juicy_Fork"]
[Black "AlleyOoper"]
[Result "1-0"]
[WhiteElo "2458"]
[BlackElo "2598"]
[TimeControl "180+1"]
[EndTime "8:28:19 PDT"]
[Termination "Juicy_Fork won by resignation"]

1. e4 {[%clk 0:03:00.9]} 1... c6 {[%clk 0:02:58.8]} 2. d4 {[%clk 0:03:00.6]}
2... d5 {[%clk 0:02:59.3]} 3. f3 {[%clk 0:03:01.2]} 3... e6 {[%clk 0:02:58.5]}
4. Nc3 {[%clk 0:03:00.5]} 4... Nf6 {[%clk 0:02:59.1]} 5. e5 {[%clk 0:02:54.8]}
5... Nfd7 {[%clk 0:02:59.3]} 6. f4 {[%clk 0:02:55.3]} 6... c5 {[%clk 0:02:59.9]}
7. Nf3 {[%clk 0:02:54.6]} 7... Nc6 {[%clk 0:03:00.6]} 8. Be3 {[%clk 0:02:50.8]}
8... a6 {[%clk 0:02:57.3]} 9. Qd2 {[%clk 0:02:48.9]} 9... b5 {[%clk 0:02:57.5]}
10. Be2 {[%clk 0:02:48.5]} 10... Qb6 {[%clk 0:02:51.8]} 11. dxc5 {[%clk
0:02:39.9]} 11... Bxc5 {[%clk 0:02:51.3]} 12. Bxc5 {[%clk 0:02:39.3]} 12... Nxc5
{[%clk 0:02:51.7]} 13. Qe3 {[%clk 0:02:35.9]} 13... b4 {[%clk 0:02:49.5]} 14.
Nd1 {[%clk 0:02:30.9]} 14... a5 {[%clk 0:02:46.6]} 15. O-O {[%clk 0:02:28.5]}
15... Ba6 {[%clk 0:02:46.8]} 16. Bxa6 {[%clk 0:02:28]} 16... Rxa6 {[%clk
0:02:47.7]} 17. Nf2 {[%clk 0:02:24]} 17... Ne7 {[%clk 0:02:40.3]} 18. g4 {[%clk
0:02:19.1]} 18... h5 {[%clk 0:02:37.4]} 19. h3 {[%clk 0:02:19]} 19... hxg4
{[%clk 0:02:37.5]} 20. hxg4 {[%clk 0:02:19.9]} 20... Na4 {[%clk 0:02:35.6]} 21.
Qxb6 {[%clk 0:02:10.9]} 21... Rxb6 {[%clk 0:02:35.7]} 22. Nd3 {[%clk 0:02:10.9]}
22... Kd7 {[%clk 0:02:28.4]} 23. Kg2 {[%clk 0:02:05.9]} 23... Rc8 {[%clk
0:02:28.2]} 24. Rf2 {[%clk 0:02:03.2]} 24... Nc5 {[%clk 0:02:17.6]} 25. Nxc5+
{[%clk 0:02:03.3]} 25... Rxc5 {[%clk 0:02:17.5]} 26. Rh1 {[%clk 0:02:04]} 26...
Rc4 {[%clk 0:02:11.2]} 27. Ng5 {[%clk 0:01:52.6]} 27... f6 {[%clk 0:02:11.6]}
28. exf6 {[%clk 0:01:52.4]} 28... gxf6 {[%clk 0:02:12]} 29. Nh7 {[%clk 0:01:53]}
29... e5 {[%clk 0:02:07.2]} 30. fxe5 {[%clk 0:01:47.8]} 30... fxe5 {[%clk
0:02:02.6]} 31. Nf6+ {[%clk 0:01:46]} 31... Rxf6 {[%clk 0:01:44.7]} 32. Rxf6
{[%clk 0:01:46.9]} 32... Rxc2+ {[%clk 0:01:45.3]} 33. Rf2 {[%clk 0:01:45.7]}
33... Rc4 {[%clk 0:01:40.5]} 34. Kg3 {[%clk 0:01:37.5]} 34... e4 {[%clk
0:01:34.7]} 35. Rh7 {[%clk 0:01:31.9]} 35... Ke6 {[%clk 0:01:32]} 36. g5 {[%clk
0:01:29.9]} 36... e3 {[%clk 0:01:29.1]} 37. Rf6+ {[%clk 0:01:26.1]} 37... Kd7
{[%clk 0:01:29.5]} 38. Kf3 {[%clk 0:01:20]} 38... Re4 {[%clk 0:01:28.2]} 39. Ke2
{[%clk 0:01:16.3]} 39... d4 {[%clk 0:01:28.2]} 40. Rf1 {[%clk 0:00:49]} 40...
Rg4 {[%clk 0:01:19.3]} 41. Rff7 {[%clk 0:00:46.7]} 41... Re4 {[%clk 0:01:14.9]}
42. g6 {[%clk 0:00:44.7]} 42... Ke8 {[%clk 0:00:45.6]} 43. Rh8+ {[%clk
0:00:33.9]} 43... Kd7 {[%clk 0:00:44.2]} 44. g7 {[%clk 0:00:30.3]} 44... d3+
{[%clk 0:00:29.8]} 45. Kxd3 {[%clk 0:00:29.8]} 45... e2 {[%clk 0:00:30.5]} 46.
g8=Q {[%clk 0:00:18.3]} 46... e1=Q {[%clk 0:00:29.5]} 47. Qc8+ {[%clk
0:00:15.9]} 47... Kd6 {[%clk 0:00:28.7]} 48. Rh6+ {[%clk 0:00:16]} 48... Re6
{[%clk 0:00:22.3]} 49. Rxe6+ {[%clk 0:00:10]} 49... Qxe6 {[%clk 0:00:22.4]} 50.
Qd8+ {[%clk 0:00:10]} 50... Qd7 {[%clk 0:00:22.5]} 51. Rf6+ {[%clk 0:00:09.6]}
1-0